Workbook

Sheet Sheet1
A1: 2023年生产部1-12月接收处置记录统计表
A2: 废物名称 | B2: 危废代码 | C2: 形态 | D2: 上年结存 | E2: 本年接收量 | F2: 处置量及工艺 | J2: 库存量 | K2: 1#库 | L2: 2#库 | M2: 干化处理 | N2: 罐区 | O2: 料坑
F3: 固废焚烧 | G3: 废液焚烧 | H3: 清洗大桶 | I3: 罐区 | K3: 1#库 | L3: 2#库 | M3: 干化处理 | N3: 罐区 | O3: 料坑
A4: 釜残杂质 | B4: 271-002-02 | C4: 半固态 | D4: 0 | E4: =66.54 -> 66.54 | G4: =16.25 -> 16.25 | J4: =D4+E4-F4-G4-H4-I4 -> 50.29 | L4: 17.25 | N4: 33.04 | P4: =K4+L4+M4+N4+O4 -> 50.29
A5: 废有机溶剂 | B5: 271-002-02 | C5: 液态 | D5: 0 | E5: =15.321 -> 15.321 | J5: 15.321 | L5: 15.321 | P5: 15.321
A6: 车间活性炭 | B6: 271-004-02 | C6: 固态 | D6: 0 | E6: =0.5 -> 0.5 | F6: =0.5 -> 0.5 | J6: 0 | P6: 0
A7: 实验室废液 | B7: 900-002-03 | C7: 液态 | D7: 110.26 | E7: =23.008+33.117+25.509+31.282+31.356+16.02+10.5+27.001+3.904+17.161+15.5 -> 234.358 | F7: =0.008+0.235+0.336+0.001+0.004+0.161 -> 0.745 | G7: =15.017+32.809+27.442+34.101+27.254+56.35+25.2+0.8 -> 218.973 | J7: 124.9 | L7: 124.9 | P7: 124.9
A8: 废药品 | B8: 900-002-03 | C8: 半固态 | D8: 0 | E8: =0.355+0.255+0.307+1.055+0.264+3.75 -> 5.986 | F8: =0.355+0.255+0.107+0.52+0.999+3.75 -> 5.986 | J8: 0 | P8: 0
A9: 一般废药品 | B9: 900-002-03 | C9: 固态 | D9: 0 | E9: =1+4.676+1+2+8.4776+1.1+0.4969+1.5+10.9+0.5+3.44 -> 35.0905 | F9: =3.5+3.176+1.5+2.0776+1.4+0.4969+8.1+10.9+0.5+0.4 -> 32.0505 | J9: 3.04 | L9: 3.04 | P9: 3.04
A10: 釜残 | B10: 263-008-04 | C10: 固态 | D10: 0 | E10: =6.34+19.18+28.98+24.12+26.88 -> 105.5 | F10: =6.34+48.16+24.12 -> 78.62 | J10: 26.88 | L10: 26.88 | P10: 26.88
A11: 釜残 | B11: 263-008-04 | C11: 半固态 | D11: 0 | E11: =25.38+3.78 -> 29.16 | F11: =21.38+4 -> 25.38 | J11: 3.78 | K11: 3.78 | P11: 3.78
A12: 生化污泥 | B12: 263-011-04 | C12: 固态 | D12: 0 | E12: =3.32+6.58+2.48+4.98+4.64 -> 22 | F12: =3.32+6.58+2.48+4.98 -> 17.36 | J12: 4.64 | L12: 4.64 | P12: 4.64
A13: 废有机溶剂 | B13: 900-401-06 | C13: 液态 | D13: 1.86 | E13: =0.86 -> 0.86 | F13: =1.86 -> 1.86 | J13: 0.86 | L13: 0.86 | P13: 0.86
A14: 废有机溶剂及废物 | B14: 900-402-06 | C14: 液态 | D14: 107.338 | E14: =4.724+2.072+90.211+5.8757+13.868+37.62+25.464+82.42 -> 262.2547 | F14: =6+11.78+38.22+10.27+0.8+19.883+0.0037+21.16+12.248+30.94 -> 151.3047 | G14: =16.024+26.72+8.632+10+37.08 -> 98.456 | J14: 119.832 | K14: 14.282 | L14: 105.55 | P14: 119.832
A15: 废溶剂 | B15: 900-404-06 | C15: 液态 | D15: 3.181 | E15: =1.56+20.774+0.6+6.308+16.029+0.26+3.8468+10.45+21.608-10.46 -> 70.9758 | F15: =0.781+1.56+1.5+2.7+4.897 -> 11.438 | G15: =0.6+1.6+0.674+4.7+3.4068 -> 10.9808 | J15: 51.738 | K15: 9.888 | L15: =52.31-10.46 -> 41.85 | P15: 51.738
A16: 废过滤棉 | B16: 900-405-06 | C16: 固态 | D16: 0 | E16: =0.02+0.01 -> 0.03 | F16: =0.02 -> 0.02 | J16: 0.01 | L16: 0.01 | P16: 0.01
A17: 废有机溶剂 | B17: 900-407-06 | C17: 液态 | D17: 0 | E17: =142.79+17.51+63.5+32.528+0.00528 -> 256.33328 | F17: =11.02+10 -> 21.02 | G17: =84.91+94.25328 -> 179.16328 | J17: 56.15 | K17: 56.15 | P17: 56.15
A18: 油污水 | B18: 251-001-08 | C18: 液态 | D18: 0 | E18: =6.5 -> 6.5 | J18: 6.5 | L18: 6.5 | P18: 6.5
A19: 清罐污泥 | B19: 251-001-08 | C19: 半固态 | D19: 0 | E19: =20.08 -> 20.08 | F19: =20.08 -> 20.08 | J19: 0 | P19: 0
A20: 废油泥、滤芯 | B20: 251-012-08 | C20: 固态 | D20: 0 | E20: =0.78+3.02+0.48 -> 4.28 | F20: =0.78+3.02 -> 3.8 | J20: 0.48 | K20: 0.48 | P20: 0.48
A21: 废溶剂油 | B21: 291-001-08 | C21: 半固态 | D21: 0 | E21: =28.08 -> 28.08 | F21: =22+6.08 -> 28.08 | J21: 0 | P21: 0
A22: 废溶剂油 | B22: 291-001-08 | C22: 液态 | D22: 36.624 | E22: =1.9+29.94 -> 31.84 | G22: =34.72+1.904+1.9 -> 38.524 | J22: 29.94 | N22: 29.94 | P22: 29.94
A23: 油泥、油脚 | B23: 071-001-08 | C23: 液态 | D23: 0 | E23: =16+8+8+8 -> 40 | F23: =16+8 -> 24 | G23: =8+7+1 -> 16 | J23: 0 | P23: 0
A24: 含油泥浆 | B24: 071-002-08 | C24: 液态 | D24: 0 | E24: =17.6+305.8+668.8+508.2+118.8-402.6 -> 1216.6 | J24: 1216.6 | N24: =1619.2-402.6 -> 1216.6 | P24: 1216.6
A25: 含油岩屑 | B25: 071-002-08 | C25: 半固态 | D25: 3481.95 | E25: =332.65+192.19+576.59+14.78+229.15+421.34+487.87+583.96+931.39+798.33+177.41+170.016-487.87 -> 4427.806 | F25: =239.55+178.91+83.44+35.33+104.69+156.24+133.08+175.84+41.01+156.26+114.19-11.08 -> 1407.46 | I25: =1050.07+640.97+427.24+358.19+2717.849+760.33-309.02 -> 5645.629 | J25: 856.667 | M25: =364.695-73.51 -> 291.185 | N25: =659.742-94.26 -> 565.482 | P25: 856.667
A26: HW08废油泥 | B26: 900-200-08 | C26: 半固态 | D26: 0 | E26: =3.95+3 -> 6.95 | F26: =3.95+2+1 -> 6.95 | J26: 0 | P26: 0
A27: HW08废油泥 | B27: 900-200-08 | C27: 液态 | D27: 29.3518 | E27: =14.96+9.72+3.52+6.54+7.16+9.9+4.6 -> 56.4 | F27: =1.28+11.96 -> 13.24 | G27: =14.36+0.3518+14.64+14.96 -> 44.3118 | J27: 28.2 | N27: 28.2 | P27: 28.2
A28: 含油废水 | B28: 900-199-08 | C28: 液态 | D28: 0 | E28: =0.3 -> 0.3 | F28: =0.3 -> 0.3 | J28: 0 | P28: 0
A29: 油泥 | B29: 900-201-08 | C29: 液态 | D29: 1 | E29: =2.7+2.3+0.2+3.026 -> 8.226 | F29: =2.7 -> 2.7 | G29: =1+2.3 -> 3.3 | J29: 3.226 | N29: 3.226 | P29: 3.226
A30: 油泥 | B30: 900-201-08 | C30: 半固态 | D30: 0 | E30: =33.14+12.06+32.06+5.12+6.06+15.62+14.04 -> 118.1 | F30: =29.44+6.32+13.06+7+22.42+18.82+21.04 -> 118.1 | J30: 0 | P30: 0
A31: 废机油 | B31: 900-201-08 | C31: 固态 | D31: 0 | J31: 0 | P31: 0
A32: 润滑脂 | B32: 900-209-08 | C32: 半固态 | D32: 0 | E32: =0.05 -> 0.05 | J32: 0.05 | K32: 0.05 | P32: 0.05
A33: 水处理浮渣及污泥、 废机油、含油废水 | B33: 900-210-08 | C33: 半固态 | D33: 14.78 | E33: =0.64+12.7+11.82+4.92+8.84+17.16+21.62+37.21 -> 114.91 | F33: =14.78+0.64+10.04+3.26+11.48+2.14+6.7+2.86+14.3 -> 66.2 | J33: 63.49 | K33: 6.96 | L33: 56.53 | P33: 63.49
A34: 水处理浮渣及污泥、 废机油、含油废水 | B34: 900-210-08 | C34: 固态 | D34: 13.88 | E34: =0.3+0.049 -> 0.349 | F34: =0.3+3.259+10.67 -> 14.229 | J34: 0 | P34: 0
A35: 水处理浮渣及污泥、 废机油、含油废水 | B35: 900-210-08 | C35: 液态 | D35: 0.06 | E35: =8.6+6+0.57+184.42 -> 199.59 | F35: =7+0.57+6 -> 13.57 | G35: =0.06+1.6 -> 1.66 | J35: 184.42 | N35: 184.42 | P35: 184.42
A36: 含油废水 | B36: 900-210-08 | C36: 液态 | D36: 122.5 | G36: =70.5+12+40 -> 122.5 | J36: 0 | P36: 0
A37: 污油泥（罐） | B37: 900-210-08 | C37: 液态 | D37: 1006 | I37: =1006 -> 1006 | J37: 0 | P37: 0
A38: 废水处理过程产废油、油泥、浮渣 | B38: 900-210-08 | C38: 液态 | D38: 0 | E38: =111+383+215+176+391+80+280+280+312+224+256-192 -> 2516 | I38: 2100 | J38: 416 | N38: =608-192 -> 416 | P38: 416
A39: 废矿物油 | B39: 900-214-08 | C39: 液态 | D39: 12.09 | E39: =0.187+0.139+3.56+0.07+0.342+0.74+0.205+40.4089 -> 45.6519 | F39: =0.187+0.139+2.605+0.205 -> 3.136 | G39: =0.72+10.77+1.56+0.07+0.137+0.74 -> 13.997 | J39: 40.6089 | L39: 0.2 | N39: 40.4089 | P39: 40.6089
A40: 废矿物油 | B40: 900-214-08 | C40: 半固态 | D40: 0 | E40: =3.34 -> 3.34 | F40: =1.34 -> 1.34 | J40: 2 | K40: 2 | P40: 2
A41: 废矿物油 | B41: 900-217-08 | C41: 液态 | D41: 55.068 | E41: =1+7.64+30.45+4.32+12.58+6+4.04+7.658 -> 73.688 | F41: =1+28.5+3+3.72 -> 36.22 | G41: =14.78+40.25+0.038+5.24+1.35 -> 61.658 | J41: 30.878 | N41: 30.878 | P41: 30.878
A42: 废甘油 | B42: 900-217-08 | C42: 半固态 | D42: 0 | E42: =0.42 -> 0.42 | J42: 0.42 | K42: 0.42 | P42: 0.42
A43: 废液压油 | B43: 900-218-08 | C43: 液态 | D43: 3.518 | E43: =0.62+2.64+2.36+5.78+4+8.9+0.7+14.6908 -> 39.6908 | F43: =0.64+2+0.74+4 -> 7.38 | G43: =0.068+3.13+0.94+2.36+5.04+5.1+0.5 -> 17.138 | J43: 18.6908 | N43: 18.6908 | P43: 18.6908
A44: 废冷冻机油 | B44: 900-219-08 | C44: 液态 | D44: 0 | E44: =5+0.4+0.62 -> 6.02 | F44: =5 -> 5 | J44: 1.02 | N44: 1.02 | P44: 1.02
A45: 废矿物油与含矿物油废物 | B45: 900-220-08 | C45: 液态 | D45: 0.31 | E45: =0.166+0.7 -> 0.866 | G45: =0.31 -> 0.31 | J45: 0.866 | N45: 0.866 | P45: 0.866
A46: 废油泥 | B46: 900-221-08 | C46: 半固态 | D46: 0 | E46: =0.06 -> 0.06 | F46: =0.06 -> 0.06 | J46: 0 | P46: 0
A47: 废油泥 | B47: 900-221-08 | C47: 液态 | D47: 0 | E47: 7.54 | J47: 7.54 | L47: 7.54 | P47: 7.54
A48: 废矿物油 | B48: 900-249-08 | C48: 液态 | D48: 64.53 | E48: =4.7+2.143+6.26+12.5126+26.965+15.3621+38.73+30.51915+9.869+129.89+25.74+60.7849-2.742 -> 360.73375 | F48: =2.143+6.70815+2.6126+24.095+12.865-2.5 -> 45.92375 | G48: =15.395+35.028+5.75+27.434+26.8451+21.19+9.598+0.239-0.242 -> 141.2371 | J48: 238.1029 | K48: 0.28 | N48: 237.8229 | P48: 238.1029
A49: 废油桶 | B49: 900-249-08 | C49: 固态 | D49: 0 | E49: =6.14+68.729+3.14+10.84+89.58+17.676+64.8856+41.16+6.04365+104.64+75.654-6.42 -> 482.06825 | F49: =2.92+4.259+25.9+0.74+27.62-6.42 -> 55.019 | H49: =3.22+59.87+7.74+2.4+80.06+16.5+37.786+39.2+1.44825+71.94+42.75+5.131 -> 368.04525 | J49: 59.004 | K49: 31.124 | L49: 27.88 | P49: 59.004
A50: 废矿物油、油泥 | B50: 900-249-08 | C50: 半固态 | D50: 0 | E50: =0.9+3.14+1.36+12.82+6.48 -> 24.7 | F50: =3.14+1.36+1.32 -> 5.82 | J50: 18.88 | K50: 6.06 | L50: 12.82 | P50: 18.88
A51: 废水、乳化液 | B51: 900-007-09 | C51: 液态 | D51: 12.077 | E51: =0.01+6.52+1.18+14.84+23.7+9.607+7.4+16.9784 -> 80.2354 | F51: =1.961+1+0.72 -> 3.681 | G51: =4.65+3.59+12.34+0.886+26.2 -> 47.666 | J51: 40.9654 | L51: 40.5654 | N51: 0.4 | P51: 40.9654
A52: 废乳化液 | B52: 900-006-09 | C52: 液态 | D52: 273.2361 | E52: =17.6+0.5+15.9+0.42+17.59+7.487+5+11.91+12.08+23.332 -> 111.819 | F52: =53.38+14.8+0.161 -> 68.341 | G52: =38.8+17.5281+88+11.9+25.52+43.767+29.02+3.318+7.89 -> 265.7431 | J52: 50.971 | L52: 50.971 | P52: 50.971
A53: 砂轮沫 | B53: 900-006-09 | C53: 固态 | D53: 0 | E53: =3.558 -> 3.558 | F53: 3.558 | J53: 0 | P53: 0
A54: 废焦油 | B54: 251-013-11 | C54: 液态 | D54: 0 | E54: =54.84 -> 54.84 | G54: =50.24+4.6 -> 54.84 | J54: 0 | P54: 0
A55: 煤焦油废钢、焦油渣 | B55: 252-005-11 | C55: 固态 | D55: 0 | E55: =115.42+7.52+10.38+1.26 -> 134.58 | F55: =7.52+10.38 -> 17.9 | H55: =83.42+32 -> 115.42 | J55: 1.26 | K55: 1.26 | P55: 1.26
A56: 苯酐渣 | B56: 261-013-11 | C56: 固态 | D56: 45.9 | F56: =23.7+6.2+6+10 -> 45.9 | J56: 0 | P56: 0
A57: 煤焦油 | B57: 900-013-11 | C57: 固态 | D57: 0 | E57: =1.8+52.34+101.01+14.94+47.9+4.36 -> 222.35 | F57: =1.8+7.57+56.33+67.58+14.94+37.9+13.87+4.36 -> 204.35 | J57: 18 | K57: 18 | P57: 18
A58: 煤焦油 | B58: 900-013-11 | C58: 液态 | D58: 0.48 | E58: =29.58+16.18+41.14+21.28+30.638+30.7+1 -> 170.518 | F58: =0.48+8.94+2.042+7.24+15.14 -> 33.842 | G58: =13.74+56.98+26.3 -> 97.02 | J58: 40.136 | K58: 35.736 | N58: 4.4 | P58: 40.136
A59: 煤焦油 | B59: 900-013-11 | C59: 半固态 | D59: 26.48 | E59: =18.56+19.08+76.1+58.62+32.42+81.74+86 -> 372.52 | F59: =26.48+18.56+3.08+85.1+35.82+29.8+31.42+31.82+16.72+10 -> 288.8 | J59: 110.2 | K59: 110.2 | P59: 110.2
A60: 煤焦油 | B60: 451-003-11 | C60: 半固态 | D60: 0 | E60: =4.125 -> 4.125 | J60: 4.125 | K60: 4.125 | P60: 4.125
A61: 煤焦油 | B61: 451-003-11 | C61: 液态 | D61: 23.32 | E61: =32.46+40+5.8+1.75 -> 80.01 | G61: =23.32+28.97+43.49 -> 95.78 | J61: 7.55 | K61: 1.75 | L61: 5.8 | P61: 7.55
A62: 废漆渣 | B62: 264-012-12 | C62: 固态 | D62: 0 | E62: =4+9.6 -> 13.6 | F62: =4+9.6 -> 13.6 | J62: 0 | P62: 0
A63: 油漆渣 | B63: 900-250-12 | C63: 固态 | D63: 0 | E63: =3.3+5.9 -> 9.2 | F63: =3.3 -> 3.3 | J63: 5.9 | K63: 5.9 | P63: 5.9
A64: 废漆渣 | B64: 900-251-12 | C64: 固态 | D64: 0 | E64: =0.3+2 -> 2.3 | F64: =2.3 -> 2.3 | J64: 0 | P64: 0
A65: 废漆渣 | B65: 900-251-12 | C65: 半固态 | D65: 0 | E65: =20.96 -> 20.96 | F65: =20.96 -> 20.96 | J65: 0 | P65: 0
A66: 废漆渣 | B66: 900-251-12 | C66: 液态 | D66: 0 | E66: =0.2+0.3 -> 0.5 | F66: =0.2+0.3 -> 0.5 | J66: 0 | P66: 0
A67: 废漆渣、油漆桶 | B67: 900-252-12 | C67: 固态 | D67: 46.712 | E67: =28.84+62.82+84.99+35.7+41.7+46.512+68.28+65.595+5.69545+9.68+62.4355 -> 512.24795 | F67: =39.552+4.84+17.34+60.01+92.52+39.22+30.33+20.78+61.595+61.93545+9.68+30.66 -> 468.46245 | H67: =0.657+4.202 -> 4.859 | J67: 85.6385 | K67: 69.4585 | L67: 16.18 | P67: 85.6385
A68: 废漆渣 | B68: 900-252-12 | C68: 半固态 | D68: 0.46 | E68: =4.56+0.5+0.5 -> 5.56 | F68: =0.46+4.56+0.5+0.5 -> 6.02 | J68: =D68+E68-F68-G68-H68-I68 -> 0 | P68: =K68+L68+M68+N68+O68 -> 0
A69: 废漆渣 | B69: 900-252-12 | C69: 液态 | D69: 11.76 | E69: =98.88+0.98 -> 99.86 | F69: =0.98 -> 0.98 | G69: =29.08+50.74+30.82 -> 110.64 | J69: 0 | P69: 0
A70: 染料沉淀物 | B70: 900-255-12 | C70: 固态 | D70: 0 | J70: 0 | P70: 0
A71: 油墨盒、油墨纸 | B71: 900-253-12 | C71: 半固态 | D71: 0 | E71: =1.2 -> 1.2 | F71: =1.2 -> 1.2 | J71: 0 | P71: 0
A72: 油墨渣子 | B72: 900-299-12 | C72: 固态 | D72: 0 | E72: =0.088+0.8+0.3+0.14+0.341+0.84+0.012+2.605+0.776 -> 5.902 | F72: =0.088+0.8+0.3+0.341+0.98+0.012+2.605 -> 5.126 | J72: 0.776 | K72: 0.776 | P72: 0.776
A73: 油墨渣子 | B73: 900-299-12 | C73: 半固态 | D73: 0.00 | E73: =1.4+0.2+1.13+3.06+1.089 -> 6.879 | F73: =1.4+1.33 -> 2.73 | J73: 4.149 | K73: 3.06 | L73: 1.089 | P73: 4.149
A74: 油墨渣子 | B74: 900-299-12 | C74: 液态 | D74: 25.72 | E74: =0.346+2.4+1.4+0.021+26.62+5.16+4+2.72 -> 42.667 | F74: =0.346+2.4+20.72+2.2+0.021+19.54+13.44+3+4 -> 65.667 | J74: 2.72 | K74: 2.72 | P74: 2.72
A75: 废油墨 | B75: 264-011-12 | C75: 液态 | D75: 0 | E75: =0.18 -> 0.18 | J75: 0.18 | K75: 0.18 | P75: 0.18
A76: 油墨渣 | B76: 264-011-12 | C76: 固态 | D76: 0 | E76: =1.215 -> 1.215 | J76: 1.215 | K76: 1.215 | P76: 1.215
A77: 废水处理污泥 | B77: 264-012-12 | C77: 固态 | D77: 0 | E77: =1.4+0.1 -> 1.5 | F77: =1.4 -> 1.4 | J77: 0.1 | K77: 0.1 | P77: 0.1
A78: 废漆渣稀释剂混合物 | B78: 264-013-12 | C78: 液态 | D78: 0 | E78: =0.57 -> 0.57 | J78: 0.57 | K78: 0.57 | P78: 0.57
A79: 发泡废料、废胶水 | B79: 900-014-13 | C79: 半固态 | D79: 0 | E79: =1.696+5.91+0.93+4.41+0.46+5.12+0.5438+0.216+0.46 -> 19.7458 | F79: =1.696+5.49+0.42+0.93+4.41+0.46+5.12+0.2038+0.39+0.22 -> 19.3398 | J79: 0.406 | K79: 0.406 | P79: 0.406
A80: 发泡废料、废胶水 | B80: 900-014-13 | C80: 固态 | D80: 0.001 | E80: =0.01+4+0.0124+0.012+6.84+0.006+4.53656 -> 15.41696 | F80: =0.001+0.01+4.0124+0.012+1+5.846+1.09 -> 11.9714 | J80: 3.44656 | K80: 3.44656 | P80: 3.44656
A81: 废胶水 | B81: 900-014-13 | C81: 液态 | D81: 0 | E81: =0.055 -> 0.055 | J81: 0.055 | K81: 0.055 | P81: 0.055
A82: 废树脂 | B82: 900-015-13 | C82: 固态 | D82: 0.377 | E82: =18.22+2.86+11.46+1.56+7.86+3.44+8.18+0.5 -> 54.08 | F82: =21.08+13.397+11.3+8.18+0.5 -> 54.457 | J82: 0 | P82: 0
A83: 废树脂 | B83: 900-015-13 | C83: 半固态 | D83: 0.003 | E83: =0.03 -> 0.03 | F83: =0.003 -> 0.003 | J83: 0.03 | K83: 0.03 | P83: 0.03
A84: 有机树脂类废物 | B84: 900-016-13 | C84: 半固态 | D84: 0 | E84: =4.739+4.5456+4.1372+3.57 -> 16.9918 | F84: =4.739+4.5456+4.1372 -> 13.4218 | J84: 3.57 | L84: 3.57 | P84: 3.57
A85: 丁二烯聚合物 | B85: 265-101-13 | C85: 固态 | D85: 5.28 | E85: =0.9+26.84+3.16+5.64+1.28 -> 37.82 | F85: =6.18+30+5.64 -> 41.82 | J85: 1.28 | L85: 1.28 | P85: 1.28
A86: 不合格有机树脂 | B86: 265-101-13 | C86: 半固态 | D86: 0 | E86: =0.4487+2.6 -> 3.0487 | F86: =0.4487 -> 0.4487 | J86: 2.6 | L86: 2.6 | P86: 2.6
A87: 清罐釜残液 | B87: 265-103-13 | C87: 液态 | D87: 0 | E87: =9.42 -> 9.42 | J87: 9.42 | K87: 9.42 | P87: 9.42
A88: 釜残与滤渣 | B88: 265-103-13 | C88: 半固态 | D88: 4 | E88: =4.6+9.36 -> 13.96 | F88: =4 -> 4 | J88: 13.96 | K88: 9.36 | L88: 4.6 | P88: 13.96
A89: 废活性炭、过滤渣 | B89: 265-103-13 | C89: 固态 | D89: 0 | E89: =36.52+5.3+16 -> 57.82 | F89: =25.42+10.4+16 -> 51.82 | J89: 6 | K89: 6 | P89: 6
A90: 蒸发残液 | B90: 265-104-13 | C90: 液态 | D90: 1.82 | F90: =1.82 -> 1.82 | J90: 0 | P90: 0
A91: 污泥 | B91: 265-104-13 | C91: 半固态 | D91: 0 | E91: =0.74 -> 0.74 | F91: 0.74 | J91: 0 | P91: 0
A92: 水处理污泥 | B92: 265-104-13 | C92: 固态 | D92: 0.2 | E92: =15.62+19.54+10.52+14.572+1.2+10.173+2.68 -> 74.305 | F92: =0.2+35.16+10.52+15.772+0.52+12.333 -> 74.505 | J92: 0 | P92: 0
A93: 印刷版 | B93: 231-002-16 | C93: 固态 | D93: 0 | E93: =0.22 -> 0.22 | J93: 0.22 | K93: 0.22 | P93: 0.22
A94: 废显影液 | B94: 398-001-16 | C94: 液态 | D94: 0 | E94: =2.5+0.55 -> 3.05 | F94: =0.55 -> 0.55 | G94: =2.5 -> 2.5 | J94: 0 | P94: 0
A95: 废水处理污泥 | B95: 266-010-16 | C95: 固态 | D95: 0 | E95: =14.459 -> 14.459 | F95: =14.459 -> 14.459 | J95: 0 | P95: 0
A96: 废显定影液 | B96: 900-019-16 | C96: 液态 | D96: 0.113 | E96: =0.1+0.24+0.54+0.2+0.05+0.36+0.1+0.13 -> 1.72 | F96: =0.113+0.1+0.05+0.22 -> 0.483 | G96: =0.24+0.54+0.2+0.36 -> 1.34 | J96: 0.01 | K96: 0.01 | P96: 0.01
A97: 含铬污泥 | B97: 336-060-17 | C97: 固态 | D97: 0 | E97: 0.4 | J97: 0.4 | K97: 0.4 | P97: 0.4
A98: 镀铜溶液 | B98: 336-062-17 | C98: 液态 | D98: 0 | E98: =13.065 -> 13.065 | J98: 13.065 | L98: 1.545 | N98: 11.52 | P98: 13.065
A99: 含铜污泥 | B99: 336-062-17 | C99: 固态 | D99: 0 | E99: 8.92 | F99: 8.92 | J99: 0 | P99: 0
A100: 电镀污泥 | B100: 336-063-17 | C100: 半固态 | D100: 0 | E100: =4.85 -> 4.85 | F100: =4.85 -> 4.85 | J100: 0 | P100: 0
A101: 电镀污泥 | B101: 336-063-17 | C101: 固态 | D101: 0 | E101: =0.046 -> 0.046 | J101: 0.046 | L101: 0.046 | P101: 0.046
A102: 废槽渣 | B102: 336-064-17 | C102: 固态 | D102: 35.67 | E102: =18.424+15.46+13.5+10.25+8+16.08+7+54.617 -> 143.331 | F102: =35.67+33.884+11.5+12.25+8+16.08+16.217 -> 133.601 | J102: 45.4 | K102: 7 | L102: 38.4 | P102: 45.4
A103: 金属表面处理污泥 | B103: 336-064-17 | C103: 半固态 | D103: 0 | E103: =1.54 -> 1.54 | J103: 1.54 | K103: 1.54 | P103: 1.54
A104: 金属表面处理污泥 | B104: 336-064-17 | C104: 液态 | D104: 0.841 | E104: =0.9+3.9+2.68+2.58 -> 10.06 | F104: =0.046+2.68 -> 2.726 | G104: =0.795+0.9+2 -> 3.695 | J104: 4.48 | L104: 4.48 | P104: 4.48
A105: 污泥 | B105: 336-063-17 | C105: 固态 | D105: 0.074 | F105: =0.074 -> 0.074 | J105: 0 | P105: 0
A106: 污泥 | B106: 336-069-17 | C106: 半固态 | D106: 0 | E106: =0.21 -> 0.21 | J106: 0.21 | L106: 0.21 | P106: 0.21
A107: 废水污泥 | B107: 336-069-17 | C107: 固态 | D107: 0 | E107: =25.68+21.87+19.72 -> 67.27 | F107: =14.11+4.57+7+21.87+19.72 -> 67.27 | J107: 0 | P107: 0
A108: 废UV灯管 | B108: 900-023-29 | C108: 固态 | D108: 0.02 | E108: =0.02-0.02 -> 0 | J108: 0.02 | L108: =0.04-0.02 -> 0.02 | P108: 0.02
A109: 废碱液 | B109: 251-015-35 | C109: 液态 | D109: 0 | E109: =17.66 -> 17.66 | G109: =17.66 -> 17.66 | J109: 0 | P109: 0
A110: 废碱渣、硫氢化钠残渣 | B110: 900-399-35 | C110: 半固态 | D110: 0 | E110: =31.46+5.72+28.34 -> 65.52 | F110: =6.46+25+18.34 -> 49.8 | J110: 15.72 | K110: 5.72 | L110: 10 | P110: 15.72
A111: 废氨水、清洁剂 | B111: 900-399-35 | C111: 液态 | D111: 0 | E111: =0.1+0.1 -> 0.2 | F111: =0.1 -> 0.1 | J111: 0.1 | K111: 0.1 | P111: 0.1
A112: 废碱液 | B112: 900-352-35 | C112: 液态 | D112: 4.5 | E112: =3.85+26.02+8.8+7.7+35.32+4.86+45.72 -> 132.27 | F112: =4.86 -> 4.86 | G112: =8.35+8.8+26.02 -> 43.17 | J112: 88.74 | K112: 48.08 | L112: 40.66 | P112: 88.74
A113: 废碱液 | B113: 900-354-35 | C113: 液态 | D113: 0 | E113: =0.9 -> 0.9 | J113: 0.9 | L113: 0.9 | P113: 0.9
A114: 含酚废水 | B114: 261-070-39 | C114: 液态 | D114: 66.38 | E114: =25.5+29.12+22.44+31.82 -> 108.88 | G114: =8.3+21.3+36.78 -> 66.38 | J114: 108.88 | N114: 108.88 | P114: 108.88
A115: 氢氧化铝滤渣、活性炭 | B115: 261-071-39 | C115: 固态 | D115: 0 | E115: =16.5+13.54+17.76+10.24+0.183 -> 58.223 | F115: =8.5+8+31.3+10.24+0.183 -> 58.223 | J115: 0 | P115: 0
A116: 废盐 | B116: 261-084-45 | C116: 固态 | D116: 0 | E116: =10.29+3.81+9.59 -> 23.69 | F116: =1.31+5.4+3.95+9.59 -> 20.25 | J116: 3.44 | K116: 3.44 | P116: 3.44
A117: 含油废物 | B117: 900-041-49 | C117: 固态 | D117: 986.84275 | E117: =967.48+797.624+808.7195+577.1253+906.2462+888.8807+864.984+1639.5806+1556.881+1804.12007+931.94637+1359.293295-981-16.98 -> 12104.90104 | F117: =936.46075+639.741+988.6805+780.6084+674.48+654.396+711.578+765.4386+1136.798+1127.71537+966.76437+993.3084-536.64 -> 9839.32939 | H117: =15.89+46.493+41.17+64.3249+26.8662+41.84+42.83+29.024+60.8+45.3093+44.1+80.82166-0.01+523.803+232.3 -> 1295.56206 | J117: 1956.852335 | K117: =747.616335+400-200-100 -> 847.616335 | L117: =691.236 -> 691.236 | O117: =118+200+100 -> 418 | P117: 1956.852335
A118: 含油废物 | B118: 900-041-49 | C118: 半固态 | D118: 0 | E118: =2.76+1.22+15.28+4.76+5.58+12.68 -> 42.28 | F118: =2.76+1.22+15.28+4.76+18.26 -> 42.28 | J118: 0 | P118: 0
A119: 含油废物 | B119: 900-041-49 | C119: 液态 | D119: 0 | E119: =0.03+0.0497 -> 0.0797 | G119: =0.03 -> 0.03 | J119: 0.0497 | K119: 0.025 | L119: 0.0247 | P119: 0.0497
A120: 废酸碱袋 | B120: 900-042-49 | C120: 固态 | D120: 0 | E120: =0.278+0.454+0.552+0.734+0.974+1.165+0.784+0.059 -> 5 | F120: =0.278+0.454+0.552+0.734+0.974+0.858+0.691+0.459 -> 5 | J120: 0 | P120: 0
A121: 废液 | B121: 900-046-49 | C121: 固态 | D121: 9.09 | E121: =2+3.84+5.87+4.86+5.87+1.38 -> 23.82 | F121: =6.5+2+8.43+8.73+1+0.18 -> 26.84 | J121: 6.07 | K121: 6.07 | P121: 6.07
A122: 废液 | B122: 900-046-49 | C122: 半固态 | D122: 1.25 | E122: =1.3 -> 1.3 | F122: =1.25 -> 1.25 | J122: 1.3 | L122: 1.3 | P122: 1.3
A123: 污泥 | B123: 772-006-49 | C123: 半固态 | D123: 0 | E123: =1.3 -> 1.3 | F123: =1.3 -> 1.3 | J123: 0 | P123: 0
A124: 硫酸盐、污泥 | B124: 772-006-49 | C124: 固态 | D124: 0 | E124: =5+9.015+0.577+1.7991+4.6505 -> 21.0416 | F124: =5+7.5+1.515+0.577+2.05 -> 16.642 | J124: 4.3996 | K124: 4.3996 | P124: 4.3996
A125: 废活性炭 | B125: 900-039-49 | C125: 固态 | D125: 7.791 | E125: =1.69+5.4888+11.35+20.4924+1.877+4.888+17.872+5.076+2.335+15.3839 -> 86.4531 | F125: =0.3+0.91+3.7088+2.56+9.05+12.9444+14.421+22.565+5.183+2.135+11.2199 -> 84.9971 | J125: 9.247 | L125: 9.247 | P125: 9.247
A126: 过期化学药品 | B126: 900-047-49 | C126: 固态 | D126: 1 | E126: =0.9996+3.33+0.6915+1.215+0.584+0.313+5.065+1.959+1.034+1.3598+8.299-0.5 -> 24.3499 | F126: =0.9996+2.9705+2.051+1.215+0.376+0.521+5.065+1.873+0.136+2.3438+4.289-0.5 -> 21.3399 | J126: 4.01 | L126: 4.01 | P126: 4.01
A127: 乙腈、异丙酮、废液 | B127: 900-047-49 | C127: 液态 | D127: 257.582 | E127: =1.54+9.234+92.6305+48.703+49.8926+45.3121+57.19015+28.91565+49.75611+30.06863+62.90162+93.079986 -> 569.224346 | F127: =4.052+8.264+2.78+0.2361+2.22+1.62955+0.5728+14.72162+34.948126 -> 69.424196 | G127: =96.484+55.1155+9.791+127.1626+29.15015+53.0181+123.71411+134.43483 -> 628.87029 | J127: 128.51186 | K127: 1.5 | L127: 127.01186 | P127: 128.51186
A128: 废化学品 | B128: 900-999-49 | C128: 液态 | D128: 0 | E128: =2.2+1.996 -> 4.196 | G128: =2.2 -> 2.2 | J128: 1.996 | K128: 1.996 | P128: 1.996
A129: 废化学品 | B129: 900-999-49 | C129: 固态 | D129: 0 | E129: =8.5+0.012+12.04228 -> 20.55428 | F129: =8.5+0.012+12.04228 -> 20.55428 | J129: 0 | P129: 0
A130: 废胺盐滤渣 | B130: 26115250 | C130: 半固态 | D130: 0 | E130: =7.74+3.46+3.9+6.42 -> 21.52 | F130: =7.74+7.36+6.42 -> 21.52 | J130: 0 | P130: 0
A131: 小计： | D131: 6913.28065 | E131: =SUM(E4:E130) -> 26810.58255 | F131: 14274.49897 | G131: 2421.99337 | H131: 1783.88631 | I131: 8751.629 | J131: 6491.855555 | K131: =SUM(K3:K130) -> 1343.358995 | L131: 1507.51696 | M131: 291.185 | N131: 2931.7946 | O131: 418 | P131: =SUM(K131:O131) -> 6491.855555
A132: 合计： | F132: =F131+G131+H131+I131 -> 27232.00765
